bitfinex-derivatives/quotes_ETHF0:USTF0_20250528
["timestamp","ask_amount","ask_price","bid_price","bid_amount"]
[1748406588273,7.77946915,2637.7,2637.6,0.07339423]
[1748406588675,48.57946915,2637.7,2637.6,0.07339423]
[1748406590976,7.77946915,2637.7,2637.6,0.07339423]
[1748406591874,0.75803,2637.2,2637.0,4.47704]
[1748406592069,5.2567,2637.1,2637.0,4.47704]
[1748406595978,6.01473,2637.1,2637.0,3.719]
[1748406596276,5.2567,2637.1,2637.0,3.719]
[1748406596980,6.01473,2637.1,2637.0,3.719]
[1748406597280,6.01473,2637.1,2637.0,4.47706]
[1748406598485,0.75812,2636.8,2636.7,0.75813]
[1748406598677,6.01475,2637.1,2637.0,0.75806]
[1748406598876,1.255,2636.7,2636.6,4.47417]
[1748406599981,4.65185,2637.1,2636.9,0.75808]
[1748406600183,1.3011,2637.0,2636.9,0.75808]
[1748406600787,4.65185,2637.1,2637.0,0.75806]
[1748406600788,3.2078,2637.1,2637.0,0.75806]
[1748406601178,4.5089,2637.1,2636.7,1.3161]
[1748406601384,0.75808,2637.0,2636.8,0.75811]
[1748406601579,1.3011,2636.9,2636.8,0.75811]
[1748406601777,1.3011,2636.9,2636.7,23.16122]
[1748406601982,0.6575,2636.8,2636.7,23.16122]
[1748406602679,0.6575,2636.8,2636.7,2.07422]
[1748406603282,1.3011,2636.9,2636.8,0.75812]
[1748406603490,3.2078,2637.1,2637.0,0.75806]
[1748406603988,3.2078,2637.1,2637.0,4.47406]
[1748406604287,3.2078,2637.1,2637.0,5.74106]
[1748406606981,1.3332,2637.3,2637.2,0.758]
[1748406608289,3.8629,2637.6,2637.5,0.75792]
[1748406608488,5.8378,2637.6,2637.5,0.75792]
[1748406609686,6.5957,2637.6,2637.4,0.75793]
[1748406609889,0.75798,2637.3,2637.1,0.75801]
[1748406610190,4.5044,2637.2,2637.0,3.716]
[1748406610492,2.5949,2637.1,2637.0,4.47406]
[1748406610794,2.5949,2637.1,2637.0,0.75806]
[1748406614996,2.5949,2637.1,2637.0,2.03446]
[1748406615295,3.2078,2637.2,2637.1,0.75803]
[1748406615600,3.2078,2637.2,2637.1,2.03443]
[1748406615894,3.2078,2637.2,2637.1,5.75143]
[1748406616094,1.9598,2637.6,2637.5,0.75792]
[1748406616297,3.26289172,2637.6,2637.5,0.75792]
[1748406618294,1.9598,2637.6,2637.5,0.75792]
[1748406618497,3.2626287,2637.6,2637.5,0.75792]
[1748406618695,1.9598,2637.6,2637.5,2.08572]
[1748406618896,3.26263834,2637.6,2637.5,2.08572]
[1748406619390,2.05919,2637.6,2637.5,2.08572]
[1748406619593,2.05919,2637.6,2637.5,1.3278]
[1748406619801,1.3013,2637.6,2637.5,2.08572]
[1748406621101,1.3013,2637.6,2637.5,2.15911423]
[1748406622203,2.05919,2637.6,2637.5,2.15911423]
[1748406624006,1.3013,2637.6,2637.5,2.15911423]
[1748406624906,2.05919,2637.6,2637.5,2.15911423]
[1748406625905,2.05919,2637.6,2637.5,1.40119423]
[1748406630407,2.05919,2637.6,2637.5,0.07339423]
[1748406630910,2.05919,2637.6,2637.5,0.83131423]
[1748406631608,2.05919,2637.6,2637.5,1.42709423]
[1748406635609,2.05919,2637.6,2637.5,0.07339423]
[1748406637806,3.36298596,2637.6,2637.5,0.07339423]
[1748406638009,0.75806,2637.0,2636.9,1.2972]
[1748406638217,3.96586,2637.0,2636.9,1.2972]
[1748406638408,3.96586,2637.0,2636.9,0.6201]
[1748406638913,5.26885641,2637.0,2636.9,0.6201]
[1748406639417,3.96586,2637.0,2636.9,0.6201]
[1748406641217,3.96586,2637.0,2636.9,1.37819]
[1748406641715,0.75806,2637.0,2636.9,1.37819]
[1748406641915,0.75806,2637.0,2636.9,0.6201]
[1748406649522,0.75806,2637.0,2636.9,0.69349423]
[1748406650121,0.75806,2637.0,2636.9,0.07339423]
[1748406655026,0.75806,2637.0,2636.9,0.83148423]
[1748406655229,0.75806,2637.0,2636.9,0.07339423]
[1748406656628,2.04446,2637.0,2636.9,0.07339423]
[1748406659535,2.04446,2637.0,2636.9,0.83148423]
[1748406660328,1.2864,2637.0,2636.9,0.83148423]
[1748406660637,2.04446,2637.0,2636.9,0.83148423]
[1748406661336,0.75806,2637.0,2636.9,0.83148423]
[1748406662437,3.96584,2637.1,2637.0,0.75806]
[1748406662630,3.96584,2637.1,2637.0,2.73526]
[1748406662831,3.2078,2637.1,2637.0,2.73526]
[1748406663031,40.8,2637.4,2637.3,0.75797]
[1748406663032,3.2078,2637.4,2637.3,0.75797]
[1748406663537,0.758,2637.2,2637.1,20.04212]
[1748406663938,1.3502,2637.3,2637.0,0.6827]
[1748406664129,3.8786,2637.1,2636.9,0.07339423]
[1748406664333,0.758,2637.3,2636.9,0.07339423]
[1748406664636,0.758,2637.2,2637.1,0.75801]
[1748406664832,0.75803,2637.1,2637.0,2.10134]
[1748406665035,0.75801,2637.2,2637.1,0.758]
[1748406665532,3.2078,2637.4,2637.0,1.3433]
[1748406665740,3.2078,2637.4,2637.3,0.75797]
[1748406665940,3.96574,2637.4,2637.3,0.75797]
[1748406666539,6.61286827,2637.4,2637.3,0.75797]
[1748406666941,0.75798,2637.3,2637.2,0.75799]
[1748406667134,2.11488,2637.3,2637.2,0.75799]
[1748406667737,2.11488,2637.3,2637.1,0.75801]
[1748406667938,1.3569,2637.2,2637.1,0.75801]
[1748406668229,2.1149,2637.2,2637.1,0.75801]
[1748406669241,3.41826798,2637.2,2637.1,0.75801]
[1748406669434,2.66026798,2637.2,2637.1,0.75801]
[1748406671243,3.41826798,2637.2,2637.1,0.75801]
[1748406671540,2.66026798,2637.2,2636.9,3.76139423]
[1748406671737,0.75806,2637.0,2636.9,0.07339423]
[1748406671942,2.06142798,2637.0,2636.9,0.07339423]
[1748406672241,3.34912798,2637.0,2636.9,0.07339423]
[1748406673845,3.34869985,2637.0,2636.9,0.07339423]
[1748406674543,2.59063985,2637.0,2636.9,0.83148423]
[1748406674946,1.30293985,2637.0,2636.9,0.83148423]
[1748406678852,3.96583,2637.1,2637.0,0.75806]
[1748406679152,3.96583,2637.1,2637.0,1.44146]
[1748406679354,3.96583,2637.1,2637.0,2.12696]
[1748406679850,0.75803,2637.1,2637.0,2.12696]
[1748406680455,3.96583,2637.1,2637.0,2.12696]
[1748406680652,2.0610894,2637.1,2637.0,2.12696]
[1748406681255,0.75803,2637.1,2637.0,2.12696]
[1748406682354,3.33680347,2637.1,2637.0,2.12696]
[1748406682656,6.54462392,2637.1,2637.0,3.40136]
[1748406683258,5.78659392,2637.1,2637.0,3.40136]
[1748406684255,6.54462392,2637.1,2637.0,3.40136]
[1748406684557,3.96576,2637.4,2637.0,2.6433]
[1748406684854,2.06119445,2637.3,2637.2,0.75799]
[1748406685249,0.75797,2637.3,2637.2,0.75799]
[1748406687255,2.00787,2637.3,2637.2,0.75799]
[1748406687855,0.758,2637.2,2637.1,2.03242]
[1748406688053,2.0079,2637.2,2637.1,2.03242]
[1748406688253,2.0079,2637.2,2636.9,0.07339423]
[1748406688254,0.75806,2637.0,2636.9,0.07339423]
[1748406688663,3.96586,2637.0,2636.9,0.07339423]
[1748406688856,6.51632874,2637.0,2636.9,0.07339423]
[1748406691061,6.51629531,2637.0,2636.9,0.07339423]
[1748406699771,5.21346,2637.0,2636.9,0.07339423]
[1748406700068,6.51616923,2637.0,2636.9,0.07339423]
[1748406701773,6.51616923,2637.0,2636.9,0.07339423]
[1748406704272,6.516268,2637.0,2636.9,0.07339423]
[1748406708482,5.21346,2637.0,2636.9,0.07339423]
[1748406708772,6.51633501,2637.0,2636.9,0.07339423]
[1748406711076,5.21346,2637.0,2636.9,0.07339423]
[1748406712478,6.51630241,2637.0,2636.9,0.07339423]
[1748406713075,6.51630753,2637.0,2636.9,0.07339423]
[1748406716376,6.51736438,2637.0,2636.9,0.07339423]
[1748406717473,6.51782604,2637.0,2636.9,0.07339423]
[1748406717676,5.27022604,2637.0,2636.9,0.07339423]
[1748406717876,5.27022604,2637.0,2636.9,2.09389423]
[1748406718974,5.27022604,2637.0,2636.9,0.07339423]
[1748406719182,5.93102604,2637.0,2636.9,0.07339423]
[1748406721673,5.93101952,2637.0,2636.9,0.07339423]
[1748406723981,4.51215952,2637.0,2636.9,0.83148423]
[1748406726279,3.2078,2637.0,2636.9,0.83148423]
[1748406726471,3.9658,2637.3,2637.1,0.75801]
[1748406726679,3.9658,2637.3,2637.2,0.6663]
[1748406726877,5.26619419,2637.3,2637.2,1.9984]
[1748406730180,5.26526566,2637.3,2637.2,1.9984]
[1748406730785,0.75803,2637.1,2637.0,0.6682]
[1748406731083,0.75803,2637.1,2637.0,2.0404]
[1748406731788,2.07362,2637.2,2637.0,2.0404]
[1748406732083,2.07362,2637.2,2637.1,1.3722]
[1748406732285,3.34809959,2637.2,2637.1,1.3722]
[1748406733088,2.03249959,2637.2,2637.1,1.3722]
[1748406734390,0.75802,2637.2,2637.1,1.3722]
[1748406734587,2.03446312,2637.2,2637.1,1.3722]
[1748406737988,0.75802,2637.2,2637.1,1.3722]
[1748406738497,0.75802,2637.2,2637.1,2.13023]
[1748406739586,4.4993,2637.3,2637.2,0.758]
[1748406739587,3.2078,2637.3,2637.2,0.758]
[1748406739791,5.2421244,2637.3,2637.2,1.3129]
[1748406740089,5.2421244,2637.3,2637.2,2.0709]
[1748406741790,5.2421244,2637.3,2637.2,1.3129]
[1748406741980,5.2421244,2637.3,2637.2,2.0709]
[1748406742292,5.2421244,2637.3,2637.2,1.3129]
[1748406743186,0.75792,2637.5,2637.4,0.75792]
[1748406743587,0.75793,2637.5,2637.4,0.75792]
[1748406743889,0.75793,2637.5,2637.4,2.67912]
[1748406745394,0.75793,2637.5,2637.4,1.9212]
[1748406745893,0.75793,2637.5,2637.4,2.67914]
[1748406748788,3.2078,2637.6,2637.5,0.75792]
[1748406748987,3.2078,2637.6,2637.5,2.02782]
[1748406751193,9.15e-06,2637.7,2637.6,0.75789]
[1748406751388,9.15e-06,2637.7,2637.6,2.00129]
[1748406751602,9.15e-06,2637.7,2637.6,5.68329]
[1748406753690,9.15e-06,2637.7,2637.6,10.68329]
[1748406755997,9.15e-06,2637.7,2637.6,10.75668423]
[1748406766402,9.15e-06,2637.7,2637.6,28.06668423]
[1748406768509,9.15e-06,2637.7,2637.6,23.06668423]
[1748406774105,9.15e-06,2637.7,2637.6,2.07468423]
[1748406774307,0.75786915,2637.7,2637.6,3.75439423]
[1748406774509,0.75786915,2637.7,2637.6,0.07339423]
[1748406775109,0.67190915,2637.7,2637.6,0.83128423]
[1748406775605,2.00500915,2637.7,2637.6,0.83128423]
[1748406777021,2.00500915,2637.7,2637.6,2.11098423]
[1748406777712,9.15e-06,2637.7,2637.6,2.11098423]
[1748406779511,9.15e-06,2637.7,2637.6,5.31878423]
[1748406781216,9.15e-06,2637.7,2637.6,26.30378423]
[1748406800330,9.15e-06,2637.7,2637.6,4.03908423]
[1748406800633,9.15e-06,2637.7,2637.6,25.02008423]
[1748406802135,9.15e-06,2637.7,2637.6,26.37568423]
[1748406810443,1.3608,2638.2,2638.1,0.75774]
[1748406810738,0.5931,2638.2,2638.1,4.43574]
[1748406810943,3.2078,2639.0,2638.9,0.75749]
[1748406811130,5.77577465,2639.0,2638.9,0.75749]
[1748406811335,4.5197,2639.0,2638.9,0.75749]
[1748406813447,4.5197,2639.0,2638.9,4.43149]
[1748406814340,5.7669,2639.0,2638.9,4.43149]
[1748406815843,5.7669,2639.0,2638.9,4.50488423]
[1748406819445,5.7669,2639.0,2638.9,0.83088423]
[1748406819637,5.7669,2639.0,2638.9,18.12688423]
[1748406820653,11.52439,2639.0,2638.9,0.07339423]
[1748406821148,11.52439,2639.0,2638.9,0.83090423]
[1748406821448,11.52439,2639.0,2638.9,0.07339423]
[1748406822544,12.7751859,2639.0,2638.9,0.07339423]
[1748406830651,12.77013038,2639.0,2638.9,0.07339423]
[1748406838355,7.77013038,2639.0,2638.9,0.07339423]
[1748406839363,7.77025306,2639.0,2638.9,0.07339423]
[1748406840753,4.45366306,2639.0,2638.9,0.83090423]
[1748406840953,3.2078,2639.0,2638.9,0.83090423]
[1748406841154,3.2078,2639.0,2638.9,2.11730423]
[1748406844565,0.00568915,2639.2,2639.1,0.75746]
[1748406845263,0.00568915,2639.2,2639.1,2.02656]
[1748406860476,0.00568915,2639.2,2639.1,2.09995423]
[1748406863876,0.00568915,2639.2,2639.1,5.30775423]
[1748406867476,1.2358,2639.9,2639.8,0.75726]
[1748406867664,3.8811,2640.0,2639.9,0.75723]
[1748406869577,5.187,2640.0,2639.9,0.75723]
[1748406872379,1.9792,2640.0,2639.9,0.75723]
[1748406874068,5.19487939,2640.0,2639.9,0.75723]
[1748406874571,0.7573,2639.7,2639.5,0.75732]
[1748406874877,1.3067,2639.6,2639.5,0.75734]
[1748406875076,2.6463,2639.6,2639.5,0.75734]
[1748406875473,3.40363,2639.6,2639.4,20.945]
[1748406875674,1.3396,2639.5,2639.4,21.70237]
[1748406875874,2.09694,2639.5,2639.2,3.666]
[1748406876081,2.09694,2639.5,2639.3,18.03637]
[1748406876280,1.3396,2639.4,2639.3,0.75737]
[1748406889888,1.3396,2639.4,2639.3,0.83076423]
[1748406890486,3.2078,2639.5,2639.4,0.75737]
[1748406890687,3.2078,2639.5,2639.4,2.08927]
[1748406894082,3.2078,2639.5,2639.4,2.74057]
[1748406894893,2.73022,2639.6,2639.5,0.75734]
[1748406895392,1.9729,2639.6,2639.5,2.04744]
[1748406896692,2.73021,2639.6,2639.5,2.04744]
[1748406896890,1.9729,2639.6,2639.5,2.04744]
[1748406897191,0.6463,2639.6,2639.5,2.04744]
[1748406900095,0.6463,2639.6,2639.5,2.70324]
[1748406900588,1.3251,2639.7,2639.6,0.75731]
[1748406900897,3.8425,2639.8,2639.7,0.75728]
[1748406901191,0.00787939,2640.0,2639.9,0.75723]
[1748406902391,0.00787939,2640.0,2639.9,1.41303]
[1748406903498,0.00787939,2640.0,2639.9,22.35103]
[1748406906189,0.00787939,2640.0,2639.9,22.42442423]
[1748406912493,0.00787939,2640.0,2639.9,1.48642423]
[1748406912691,0.00787939,2640.0,2639.9,22.41942423]
[1748406914805,0.00787939,2640.0,2639.9,25.62722423]
[1748406915419,4.5549,2640.7,2640.0,1.893]
[1748406915604,5.226,2640.8,2640.7,0.757]
[1748406915916,3.2078,2641.1,2640.9,0.75694]
[1748406916112,3.96471,2641.1,2640.9,0.75694]
[1748406916316,1.3471,2641.0,2640.9,0.75694]
[1748406916518,3.2078,2641.1,2641.0,0.75691]
[1748406916701,3.2078,2641.1,2641.0,4.41891]
[1748406917399,3.2078,2641.1,2641.0,5.06611]
[1748406917901,0.00568915,2641.2,2641.1,0.75688]
[1748406918101,0.00568915,2641.2,2641.1,2.78888]
[1748406924303,0.00568915,2641.2,2641.1,2.032]
[1748406924505,1.31568915,2641.2,2641.1,1.3581]
[1748406924709,1.31568915,2641.2,2641.1,2.11498]
[1748406925104,0.00568915,2641.2,2641.1,2.11498]
[1748406926723,3.2078,2642.3,2642.0,0.75661]
[1748406927039,2.6047,2642.2,2642.1,0.7566]
[1748406927327,3.2078,2642.3,2642.2,0.75657]
[1748406927926,3.2078,2642.3,2642.1,0.75658]
[1748406928112,1.3062,2642.2,2642.1,0.75658]
[1748406929411,1.3062,2642.2,2642.0,1.3391]
[1748406929624,2.0628,2642.2,2641.9,0.75664]
[1748406929916,1.3175,2642.1,2642.0,0.75663]
[1748406930108,2.6495,2642.1,2642.0,0.75663]
[1748406930608,2.6495,2642.1,2641.9,0.75664]
[1748406930810,2.6495,2642.1,2642.0,0.75663]
[1748406931605,3.2078,2642.3,2641.9,1.264]
[1748406931606,3.2078,2642.3,2642.2,0.75657]
[1748406932127,0.00567816,2642.5,2642.4,0.75651]
[1748406932921,0.00567816,2642.5,2642.4,2.10311]
[1748406935521,0.00567816,2642.5,2642.4,5.76011]
[1748406938716,0.00567816,2642.5,2642.4,8.96791]
[1748406940222,8.16e-06,2642.5,2642.4,8.96791]
[1748406940638,0.6766,2643.0,2642.9,0.75637]
[1748406940918,3.2078,2643.4,2643.3,0.75625]
[1748406941118,0.6834,2643.3,2643.2,0.75627]
[1748406941731,0.6834,2643.3,2642.7,20.909]
[1748406941927,1.9748,2643.2,2643.1,0.75631]
[1748406944114,0.6807,2643.2,2643.1,0.75631]
[1748406944321,4.4722,2643.4,2643.3,0.75626]
[1748406944623,1.2644,2643.4,2643.3,0.75626]
[1748406944814,0.00369368,2643.5,2643.4,0.75623]
[1748406945932,3.68e-06,2643.5,2643.4,4.35146419]
[1748406946424,3.68e-06,2643.5,2643.4,9.35146419]
[1748406949623,1.09e-06,2643.5,2643.4,9.35146419]
[1748406950621,1.09e-06,2643.5,2643.4,9.42485842]
[1748406951420,1.09e-06,2643.5,2643.4,4.42485842]
[1748406951621,1.09e-06,2643.5,2643.4,4.35146419]
[1748406954335,1.09e-06,2643.5,2643.4,25.24946419]
[1748406954724,1.09e-06,2643.5,2643.4,25.32285842]
[1748406958122,1.9353,2644.1,2644.0,0.75605]
[1748406961529,0.6709,2644.1,2644.0,0.75605]
[1748406961829,0.6709,2644.1,2644.0,2.71175]
[1748406962028,3.2078,2644.3,2644.2,0.756]
[1748406962336,3.2078,2644.6,2644.5,0.75591]
[1748406963834,3.2078,2644.9,2644.5,0.75591]
[1748406964032,3.2078,2644.9,2644.8,0.75583]
[1748406964232,4.43391566,2644.9,2644.8,0.75583]
[1748406965231,1.22611566,2644.9,2644.8,0.75583]
[1748406965432,3.2078,2645.2,2645.1,0.75574]
[1748406965632,4.43404724,2645.2,2645.1,0.75574]
[1748406965827,9.43404724,2645.2,2645.1,0.75574]
[1748406966442,4.43404724,2645.2,2645.1,0.75574]
[1748406966651,7.64e-06,2645.2,2645.1,4.40874]
[1748406966939,3.2078,2645.5,2645.4,0.75565]
[1748406967143,0.657,2645.7,2645.2,1.24767816]
[1748406967360,3.2078,2645.8,2645.7,0.75557]
[1748406967559,3.2078,2646.1,2645.8,0.75554]
[1748406967853,3.2078,2646.1,2646.0,0.75548]
[1748406968233,0.6693,2646.2,2646.1,0.75545]
[1748406969243,3.2078,2646.5,2646.4,0.75537]
[1748406969436,3.8334,2646.5,2646.4,0.75537]
[1748406970552,8.8334,2646.5,2646.0,3.653]
[1748406970739,3.2078,2646.5,2646.0,3.653]
[1748406970936,1.3164,2646.4,2645.8,3.2078]
[1748406971243,1.3164,2646.4,2646.3,0.7554]
[1748406974549,6.3164,2646.4,2646.3,0.7554]
[1748406975940,6.3164,2646.4,2646.0,3.652]
[1748406976146,1.3164,2646.4,2646.3,0.7554]
[1748406976542,6.3164,2646.4,2646.3,0.7554]
[1748406977851,7.07177,2646.4,2646.3,0.7554]
[1748406978451,7.07177,2646.4,2646.2,0.7554]
[1748406978654,2.07179,2646.4,2646.2,0.7554]
[1748406979151,1.3164,2646.4,2646.3,0.7554]
[1748406979452,2.07177,2646.4,2646.3,0.7554]
[1748406979647,2.07177,2646.4,2645.9,4.03472793]
[1748406979850,1.3164,2646.4,2646.3,0.7554]
[1748406980055,1.3164,2646.4,2645.8,3.651]
[1748406980259,3.2078,2646.1,2645.5,3.8475]
[1748406980550,3.2078,2646.1,2646.0,0.75548]
[1748406982551,3.96326,2646.1,2645.6,5.0146]
[1748406982748,1.3488,2646.0,2645.9,0.75549]
[1748406982946,2.10429,2646.0,2645.9,0.75551]
[1748406983143,6.3488,2646.0,2645.6,1.3636]
[1748406983350,2.02671,2645.9,2645.8,0.75554]
[1748406983547,3.37551,2645.9,2645.8,0.75554]
[1748406983952,3.37552,2645.9,2645.8,0.75554]
[1748406984146,3.37552,2645.9,2645.7,0.75555]
[1748406984545,2.62,2645.9,2645.8,0.75554]
[1748406989955,3.37551,2645.9,2645.8,0.75554]
[1748406990254,1.9928,2645.9,2645.8,0.75554]
[1748406991459,3.2078,2646.1,2646.0,0.75548]
[1748406991761,4.41924587,2646.1,2646.0,0.75548]
[1748406991956,9.41924587,2646.1,2646.0,0.75548]
[1748406992255,10.74644587,2646.1,2646.0,0.75548]
[1748406992452,5.74644587,2646.1,2646.0,0.75548]
[1748406992657,6.50189587,2646.1,2646.0,0.75548]
[1748406992856,5.74644587,2646.1,2645.8,0.75552]
[1748406993051,1.96694587,2646.0,2645.9,0.75551]
[1748406993251,3.27804587,2646.0,2645.9,0.75551]
[1748406994260,3.27804587,2646.0,2645.8,0.75551]
[1748406994460,1.21144587,2645.9,2645.8,0.75551]
[1748406995758,0.75549,2646.0,2645.9,0.75549]
[1748406996064,1.96983527,2646.0,2645.9,0.75549]
[1748406997859,1.21434527,2646.0,2645.9,0.75549]
[1748406998659,3.2078,2646.1,2646.0,0.75548]
[1748406999363,5.17763583,2646.1,2646.0,0.75548]
[1748407000470,4.42228566,2646.1,2645.8,1.2828]
[1748407000763,0.75551,2645.9,2645.8,1.2828]
[1748407000966,1.96999566,2645.9,2645.8,1.2828]
[1748407001163,3.28699566,2645.9,2645.8,1.2828]
[1748407001387,0.7556,2645.6,2645.5,0.6397]
[1748407001575,5.17771556,2645.6,2645.5,0.6397]
[1748407002462,5.17771556,2645.6,2645.5,1.39533]
[1748407002663,6.48851556,2645.6,2645.5,0.6397]
[1748407003068,0.75563,2645.5,2645.4,1.2828]
[1748407003273,0.75563,2645.5,2645.4,2.03845]
[1748407003771,0.75563,2645.5,2645.4,1.2828]
[1748407004065,0.75563,2645.5,2645.4,2.03844]
[1748407004464,5.27422,2645.6,2645.4,2.03844]
[1748407005870,5.27422,2645.6,2645.5,0.75563]
[1748407006071,6.4877493,2645.6,2645.5,1.3525]
[1748407008076,6.4877493,2645.6,2645.5,2.10813]
[1748407008265,6.4877493,2645.6,2645.5,1.3525]
[1748407008880,6.48793328,2645.6,2645.5,1.3525]
[1748407011672,6.48793328,2645.6,2645.5,2.10813]
[1748407012579,6.48793328,2645.6,2645.5,1.3525]
[1748407013182,6.48805779,2645.6,2645.5,1.3525]
[1748407013681,0.75565,2645.4,2645.3,2.07376]
[1748407013880,0.75564,2645.5,2645.4,0.75565]
[1748407014589,0.75564,2645.5,2645.4,2.11735]
[1748407017592,0.75564,2645.5,2645.4,1.3617]
[1748407017790,0.75564,2645.5,2645.4,2.11735]
[1748407018392,0.75564,2645.5,2645.4,1.3617]
[1748407019897,3.96341,2645.6,2645.5,0.75563]
[1748407020595,0.75563,2645.5,2645.4,1.3617]
[1748407020803,0.75563,2645.5,2645.4,2.11735]
[1748407021994,3.2078,2645.6,2645.5,0.75563]
[1748407022295,4.42015695,2645.6,2645.5,2.10033]
[1748407023092,5.17575695,2645.6,2645.5,2.10033]
[1748407024992,5.17575695,2645.6,2645.5,1.3447]
[1748407026390,5.1761162,2645.6,2645.5,1.3447]
[1748407026897,4.4205162,2645.6,2645.5,2.10033]
[1748407027294,3.2078,2645.6,2645.5,2.10033]
[1748407028493,4.42153771,2645.6,2645.5,2.10033]
[1748407028692,5.17713771,2645.6,2645.5,1.3447]
[1748407031403,4.42153771,2645.6,2645.5,2.10033]
[1748407031599,5.17877836,2645.6,2645.5,2.10033]
[1748407032102,1.21537836,2645.6,2645.5,2.10033]
[1748407032297,3.96332,2645.9,2645.5,1.3447]
[1748407032495,1.21521727,2645.8,2645.7,0.75555]
[1748407032799,1.97075727,2645.8,2645.7,17.99055]
[1748407032993,1.97075727,2645.8,2645.7,18.66645]
[1748407033900,0.75554,2645.8,2645.7,17.9109]
[1748407034101,0.75554,2645.8,2645.7,18.66647]
[1748407034400,0.75554,2645.8,2645.7,20.02577]
[1748407035504,0.75554,2645.8,2645.7,19.2702]
[1748407035802,0.75554,2645.8,2645.7,20.02577]
[1748407036306,3.96332,2645.9,2645.7,20.02577]
[1748407036502,3.96332,2645.9,2645.8,1.912]
[1748407036702,5.17747537,2645.9,2645.8,1.912]
[1748407036903,0.75561,2645.6,2645.5,0.75563]
[1748407037098,3.96341,2645.6,2645.5,1.2614]
[1748407037403,3.2078,2645.6,2645.2,3.66067816]
[1748407037602,0.75568,2645.3,2645.2,4.92207816]
[1748407037802,0.75568,2645.3,2645.2,4.41638816]
[1748407038201,0.75568,2645.3,2645.2,5.72538816]
[1748407038806,0.75567,2645.4,2645.2,5.72538816]
[1748407040003,0.75568,2645.3,2645.2,5.72538816]
[1748407040206,0.75568,2645.3,2645.2,4.96967816]
[1748407041705,0.75568,2645.3,2645.2,5.72538816]
[1748407042107,0.75568,2645.3,2645.2,2.07038816]
[1748407043107,0.75568,2645.3,2645.2,1.31467816]
[1748407046208,0.75568,2645.3,2645.2,2.07038816]
[1748407047013,0.75568,2645.3,2645.2,1.31467816]
[1748407047611,0.75568,2645.3,2645.2,2.07038816]
[1748407049014,0.75568,2645.3,2645.2,1.31467816]
[1748407050506,3.96348,2645.3,2645.2,0.00567816]
[1748407052116,2.12204,2645.5,2645.4,0.75565]
[1748407052323,1.21483575,2645.5,2645.4,0.75565]
[1748407052510,0.7556,2645.6,2645.4,0.75565]
[1748407052710,4.4893,2645.7,2645.5,0.6328]
[1748407053086,3.2078,2646.0,2645.9,0.75551]
[1748407053234,3.2078,2646.0,2645.9,1.37451]
[1748407053428,3.2078,2646.0,2645.9,2.63431]
[1748407053629,3.2078,2646.3,2646.2,0.75543]
[1748407055432,1.3133,2646.7,2646.2,0.75543]
[1748407055433,3.2078,2646.7,2646.6,0.75531]
[1748407057314,0.75524,2646.9,2646.6,0.75531]
[1748407057614,0.75524,2646.9,2646.7,1.3409]
[1748407057815,2.02404,2646.9,2646.7,1.9899]
[1748407058019,1.2688,2646.9,2646.7,1.9899]
[1748407058216,1.2688,2646.9,2646.8,1.3409]
[1748407058610,2.02403,2646.9,2646.8,1.3409]
[1748407059317,3.2078,2647.0,2646.9,0.75523]
[1748407059618,0.75523,2646.9,2646.8,1.3409]
[1748407059818,3.2078,2647.0,2646.7,0.649]
[1748407059819,0.75525,2646.8,2646.7,0.649]
[1748407060013,3.2078,2647.0,2646.5,0.65576733]
[1748407060213,0.75523,2646.9,2646.6,1.4186]
[1748407060422,0.75526,2646.8,2646.6,0.6633]
[1748407060723,3.2078,2647.0,2646.7,0.75526]
[1748407061214,3.2078,2647.0,2646.9,0.75523]
[1748407061419,3.77261,2649.4,2646.8,18.5027]
[1748407061420,0.75512,2647.3,2646.8,21.7105]
[1748407061622,3.2078,2647.7,2647.1,0.75515]
[1748407061821,0.75506,2647.5,2647.2,3.36233]
[1748407062120,0.75506,2647.5,2647.3,1.2727]
[1748407062521,0.75508,2647.4,2647.3,1.2727]
[1748407063324,3.96288,2647.4,2647.3,1.2727]
[1748407065324,3.2078,2647.4,2647.3,1.2727]
[1748407065621,3.96288,2647.4,2647.3,1.2727]
[1748407066020,3.2078,2647.4,2647.3,1.2727]
[1748407067317,3.2078,2647.4,2647.3,2.02781]
[1748407069322,3.28119423,2647.4,2647.3,2.02781]
[1748407070336,4.03627423,2647.4,2647.3,1.2727]
[1748407070520,3.28119423,2647.4,2647.3,1.2727]
[1748407070829,4.03627423,2647.4,2647.3,1.2727]
[1748407071024,5.99447423,2647.4,2647.3,1.2727]
[1748407072227,5.99447423,2647.4,2647.3,2.02781]
[1748407072435,5.99447423,2647.4,2647.3,1.2727]
[1748407072728,5.37017423,2647.4,2647.3,1.2727]
[1748407073323,5.37017423,2647.4,2647.3,2.02781]
[1748407073528,4.61509423,2647.4,2647.3,2.02781]
[1748407074227,3.28119423,2647.4,2647.3,2.02781]
[1748407075228,4.03627423,2647.4,2647.3,2.02781]
[1748407075423,4.03627423,2647.4,2647.3,1.2727]
[1748407077528,3.96299,2647.1,2646.9,2.11451]
[1748407078124,0.7552,2647.0,2646.9,2.11451]
[1748407078731,0.7552,2647.0,2646.9,1.3593]
[1748407080529,2.1012,2647.0,2646.9,1.3593]
[1748407082223,3.96298,2647.1,2647.0,0.7552]
[1748407082431,3.96298,2647.1,2646.9,2.11452]
[1748407082826,0.7552,2647.0,2646.9,2.11452]
[1748407083831,0.7552,2647.0,2646.9,1.3593]
[1748407084541,0.82859423,2647.0,2646.9,1.3593]
[1748407085925,2.10059423,2647.0,2646.9,1.3593]
[1748407086328,2.10059423,2647.0,2646.7,1.3493]
[1748407086329,0.75525,2646.8,2646.7,1.3493]
[1748407086528,0.75531,2646.6,2646.5,0.68316733]
[1748407087235,0.75531,2646.6,2646.5,2.62196733]
[1748407087435,0.75531,2646.6,2646.5,1.94446733]
[1748407087629,0.75531,2646.6,2646.5,0.00566733]